Cogmind - Beta 13 X1 @@@ ROGUE MODE // 2023.09.21 @ 10:05:54 Player: DuckBoy Result: Destroyed by TM-JNM(R) with Subdweller Machine Gun Performance ------------- Evolutions (0) 0 Regions Visited (2) 400 Robots Destroyed (14) 70 Value Destroyed (382) 382 Prototype IDs (0) 0 Alien Tech Used (0) 0 Bonus (0) 0 TOTAL SCORE: 852 Bonus ------- None Cogmind --------- Core Integrity 0/250 Matter 300/300 Energy 95/100 System Corruption 1% Temperature Cool (9) Movement Core (50) Location -10/Subcaves Parts ------- > --- POWER (1) -------- (None) > --- PROPULSION (2) --- (None) > --- UTILITY (2) ------ (None) > --- WEAPON (2) ------- (None) > --- INVENTORY (5) ---- Light Ion Engine Subdweller Power Source Subdweller Monowheel Assault Rifle Light Assault Rifle Peak State ------------ > --- POWER ------------ Ion Engine > --- PROPULSION ------- Light Treads Light Treads > --- UTILITY ---------- Small Storage Unit Hacking Suite > --- WEAPON ----------- Medium Laser Light Assault Rifle > --- INVENTORY -------- Light Ion Engine Wheel Compact Wheel Heavy EM Pulse Gun Heavy EM Pulse Gun Particle Gun Assault Rifle Grenade Launcher [Rating: 10] Favorites ----------- Power Light Ion Engine Engine Light Ion Engine Propulsion Light Treads Treads Light Treads Utility Small Storage Unit Storage Small Storage Unit Hackware Hacking Suite Protection Scrap Shield Weapon Medium Laser Energy Gun Medium Laser Ballistic Gun Assault Rifle Launcher Grenade Launcher Build | -11 -10 -10 ------- Run | Jun Mat Sub Slots Evolved . | . . . Power . | . . . Propulsion . | . . . Utility . | . . . Weapon . | . . . Parts Attached 15 | 6 7 2 Power 3 | 1 2 . Engine 3 | 1 2 . Core . | . . . Reactor . | . . . Propulsion 2 | 2 . . Treads 2 | 2 . . Leg . | . . . Wheel . | . . . Hover . | . . . Flight . | . . . Utility 4 | 1 2 1 Device . | . . . Storage 2 | 1 1 . Processor . | . . . Hackware 1 | . 1 . Protection 1 | . . 1 Artifact . | . . . Weapon 6 | 2 3 1 Energy Gun 2 | 1 . 1 Energy Cannon . | . . . Ballistic Gun 3 | 1 2 . Ballistic Cannon . | . . . Launcher 1 | . 1 . Special Weapon . | . . . Impact Weapon . | . . . Slashing Weapon . | . . . Piercing Weapon . | . . . Special Melee Weapon . | . . . Unidentified Prototypes . | . . . Parts Lost 7 | . 1 6 Power 2 | . 1 1 Propulsion 2 | . . 2 Utility 1 | . . 1 Weapon 2 | . . 2 Highest Loss Streak 6 | . 1 6 To Critical Strikes 1 | . . 1 Average Slot Usage (%) 92 | . 94 83 Engine 13 | . 13 14 Treads 27 | . 28 27 Storage 11 | . 14 1 Hackware 7 | . 9 1 Protection 2 | . . 11 Energy Gun 14 | . 14 15 Ballistic Gun 13 | . 13 11 Naked Turns 1 | . . 1 Heaviest Build 28 | 12 28 28 Greatest Support 40 | 40 40 40 Greatest Overweight (x) . | . . . Average Overweight (x) . | . . . Largest Inventory Capacity 15 | 8 15 15 Average Capacity 8 | 6 9 5 Most Carried 8 | 4 8 8 Average Carried 6 | 2 7 5 Final Capacity 15 | 8 15 5 Final Carried 8 | 4 8 5 Class Distribution -------------------- 100% | Mutant Dominant Class ---------------- Mutant | -10/Materials Mutant | -10/Subcaves Resources | -11 -10 -10 ----------- Run | Jun Mat Sub Matter Collected 469 | 252 189 28 Remotely . | . . . Salvage Created 580 | . 475 105 Parts 23 | . 19 4 Haulers Intercepted . | . . . Recyclers Shooed 2 | 1 1 . Parts Field Recycled . | . . . Retrieved Matter . | . . . Parts Self-Destructed . | . . . Prevented . | . . . Kills | -11 -10 -10 ------- Run | Jun Mat Sub Combat Hostiles Destroyed 8 | . 5 3 Guns 7 | . 4 3 AOE 1 | . 1 . Classes Destroyed 5 | . 4 1 Recycler 3 | . 3 . Operator 1 | . 1 . Watcher 2 | . 2 . Grunt 5 | . 5 . Subdweller 3 | . . 3 Best Kill Streak 4 | . 4 1 Combat Bots Only 3 | . 3 1 Max Kills in Single Turn 1 | . 1 1 Gunslinging . | . . . Exploded 1 | . 1 . Melee . | . . . Uniques/NPCs Destroyed . | . . . Combat | -11 -10 -10 -------- Run | Jun Mat Sub Damage Taken 1192 | . 265 927 Core 259 | . 61 198 Absorbed by Shields . | . . . Core Remaining (%) 100 | 100 . . Volleys Fired 60 | . 39 21 Largest 2 | . 2 2 Hottest 115 | . 80 115 Shots Fired 112 | . 75 37 Gun 109 | . 72 37 Cannon . | . . . Launcher 3 | . 3 . Special . | . . . Kinetic 44 | . 34 10 Thermal 65 | . 38 27 Explosive 3 | . 3 . Electromagnetic . | . . . Robot Hit Streak 20 | . 18 20 Robot Miss Streak 3 | . 3 1 Penetration Max . | . . . Secondary Targets . | . . . Shots Hit Robots 79 | . 45 34 Core Hits 29 | . 21 8 Critical Kills . | . . . Critical Parts Destroyed . | . . . Critical Strikes 3 | . 1 2 Burn 3 | . 1 2 Melee Attacks . | . . . Impact . | . . . Slashing . | . . . Piercing . | . . . Sneak Attacks . | . . . Combat Hostiles . | . . . Follow-up Attacks . | . . . Damage Inflicted 1073 | 2 697 374 Guns 977 | . 603 374 Cannons . | . . . Explosions 94 | . 94 . Melee . | . . . Ramming 2 | 2 . . Kinetic 336 | . 264 72 Thermal 641 | . 339 302 Explosive 94 | . 94 . Electromagnetic . | . . . Impact . | . . . Slashing . | . . . Piercing . | . . . Highest Corruption 1 | . 1 1 Average Corruption 1 | . 1 1 Corruption Purged . | . . . Corruption Blocked . | . . . Effects 3 | . 1 2 Message Errors 2 | . 1 1 Matter Fused 1 | . . 1 Overload Shots . | . . . Overflow Damage . | . . . Projectiles . | . . . Explosions . | . . . Melee . | . . . Knockbacks . | . . . Impact . | . . . Kinetic . | . . . Secondary . | . . . Self-Inflicted Damage . | . . . Shots . | . . . Rammed 3 | 2 . 1 Targets Rammed 3 | 2 . 1 Kicked . | . . . Crushed . | . . . Highest Temperature 151 | . 151 15 Average Temperature 47 | . 52 5 Received Heat Transfer 312 | . 165 147 Siege Activations . | . . . Robots Corrupted . | . . . Combat Hostiles . | . . . Parts Fried . | . . . Impact Corruptions . | . . . Robots Melted . | . . . Combat Hostiles . | . . . Parts Melted 4 | . 4 . Heat Transferred 2035 | . 1073 962 Parts Sabotaged . | . . . Parts Stolen . | . . . Parts Stripped . | . . . Power Chain Reactions . | . . . Missiles Intercepted . | . . . Alert | -11 -10 -10 ------- Run | Jun Mat Sub Peak Influence 219 | . 219 . Initial . | . . . Average 73 | . 82 . Maximum Alert Level 1 | . 1 . Low Security (%) 98 | 100 97 . Level 1 1 | . 2 . Level 2 . | . . . Level 3 . | . . . Level 4 . | . . . Level 5 . | . . . High Security . | . . . Max Security . | . . . Squads Dispatched 3 | . 3 . Investigation 1 | . 1 . Extermination . | . . . Reinforcement 2 | . 2 . Assault . | . . . Garrison . | . . . Intercept . | . . . Searches Triggered . | . . . Construction Impeded . | . . . Haulers Reinforced . | . . . Active Scanning Responses . | . . . Cargo Convoy Interrupts . | . . . Stealth | -11 -10 -10 --------- Run | Jun Mat Sub Distress Signals . | . . . Communications Jammed . | . . . Distress Signals . | . . . Times Spotted 22 | . 11 11 Peak Tracking Total 8 | . 4 8 Tactical Retreats 1 | . 1 . Traps | -11 -10 -10 ------- Run | Jun Mat Sub Traps Triggered 1 | . 1 . Indirectly . | . . . Trap Hack Attempts . | . . . Triggered . | . . . Disarmed . | . . . Reprogrammed . | . . . Reused . | . . . Traps Extracted . | . . . Installed . | . . . Triggered . | . . . Machines | -11 -10 -10 ---------- Run | Jun Mat Sub Machines Disabled . | . . . Max in Single Turn . | . . . Machines Repaired . | . . . Machines Sabotaged . | . . . Overloaded Fab Kills . | . . . Hacking | -11 -10 -10 --------- Run | Jun Mat Sub Machines Accessed 6 | . 6 . Terminals 6 | . 6 . Fabricators . | . . . Repair Stations . | . . . Recycling Units . | . . . Scanalyzers . | . . . Garrison Access . | . . . Total Hacks 20 | . 20 . Successful 5 | . 5 . Failed 15 | . 15 . Catastrophic 4 | . 4 . Database Lockouts . | . . . Manual 17 | . 17 . Terminals 20 | . 20 . Fabricators . | . . . Repair Stations . | . . . Recycling Units . | . . . Scanalyzers . | . . . Garrison Access . | . . . Terminal Hacks 2 | . 2 . Robot Schematic 1 | . 1 . Unreport Threat 1 | . 1 . Fabricator Hacks . | . . . Repair Station Hacks . | . . . Recycling Unit Hacks . | . . . Scanalyzer . | . . . Garrison Access Hacks . | . . . Unauthorized Hacks 3 | . 3 . Terminals 3 | . 3 . Botnet 3 | . 3 . Fabricators . | . . . Repair Stations . | . . . Recycling Units . | . . . Scanalyzers . | . . . Garrison Access . | . . . Data Cores Recovered . | . . . Used . | . . . Hacking Detections 6 | . 6 . Full Trace Events 1 | . 1 . Feedback Events . | . . . Feedback Blocked . | . . . Robot Schematics Acquired 1 | . 1 . Robots Built . | . . . Authchips . | . . . Time . | . . . Total Robot Build Rating . | . . . Part Schematics Acquired . | . . . Parts Built . | . . . Authchips . | . . . Time . | . . . Total Part Build Rating . | . . . Parts Repaired . | . . . Time . | . . . Parts Recycled . | . . . Recycled Matter . | . . . Retrieved Matter . | . . . Retrieved Components . | . . . Parts Scanalyzed . | . . . Part Schematics Acquired . | . . . Parts Damaged . | . . . Bothacking | -11 -10 -10 ------------ Run | Jun Mat Sub Used RIF Installer . | . . . Robots Hacked . | . . . Non-combat . | . . . Combat . | . . . Robot Hacks Applied . | . . . Relay Couplers Released . | . . . Fabnet Peak Effective % . | . . . Robots Rewired . | . . . Allies Hacked . | . . . Hacks Repelled . | . . . Allies | -11 -10 -10 -------- Run | Jun Mat Sub Total Allies . | . . . Largest Group . | . . . Highest-Rated Group . | . . . Highest-Rated Ally . | . . . Total Orders . | . . . Ally Attacks . | . . . Total Damage . | . . . Kills . | . . . Allies Corrupted . | . . . Allies Melted . | . . . Intel | -11 -10 -10 ------- Run | Jun Mat Sub Robot Analysis Total . | . . . Derelict Logs Recovered . | . . . Drone Launches . | . . . Drone Recoveries . | . . . Exploration | -11 -10 -10 ------------- Run | Jun Mat Sub Turns Passed 967 | 84 692 191 Spaces Moved 461 | 45 343 73 Core 3 | 3 . . Treads 458 | 42 343 73 Legs . | . . . Wheels . | . . . Hover . | . . . Flight . | . . . Fastest Speed 50 | 50 160 160 Average Speed 159 | 152 160 160 Slowest Speed 160 | 160 160 160 Overloaded Moves . | . . . Propulsion Burnouts . | . . . Robots Hopped . | . . . Cave-ins Triggered . | . . . Exploration Rate (%) 24 | 4 56 12 Regions Visited 2 Branch Regions 1 Pre-discovered Areas . | . . . Known Exits Taken . | . . . Unknown Exits Taken 2 | 1 1 . Scrap Searched . | . . . Spaces Dug . | . . . Terrain Destroyed 23 | . 23 . Melee . | . . . Projectile . | . . . AOE 23 | . 23 . Terrain Rammed . | . . . Walls Destroyed . | . . . Machines Disabled . | . . . Actions | -11 -10 -10 --------- Run | Jun Mat Sub Total 584 | 56 414 114 Wait 16 | . 12 4 Move 459 | 44 342 73 Hop . | . . . Pick Up 16 | 4 8 4 Fast Attach 8 | 6 1 1 Attach 1 | . 1 . Detach . | . . . Swap 6 | . 5 1 Drop 12 | . 6 6 Fire 60 | . 39 21 Melee . | . . . Ram . | . . . Kick . | . . . Crush 3 | 2 . 1 Escape Stasis . | . . . Rewire . | . . . Trap . | . . . Miscellaneous 3 | . . 3 Route ------- -11/Junkyard -10/Materials (discovered 4 exits: [*Mat x2] / [*Min] / [*Sub]) -10/Subcaves History --------- Turn | Location | Event 2 | -11/Junkyard | Discovered new exit (range 16) 85 | -11/Junkyard | Entered Materials 195 | -10/Materials | Discovered new exit (range 15) 317 | -10/Materials | Build established: Mutant 449 | -10/Materials | Discovered new exit (range 10) 547 | -10/Materials | Discovered new exit (range 5) 611 | -10/Materials | Discovered new exit (range 10) 777 | -10/Materials | Entered Subcaves 915 | -10/Subcaves | Ambushed by swarm of Subdwellers 924 | -10/Subcaves | Core integrity fell below 50% 949 | -10/Subcaves | Disturbed a concealed Subdweller 967 | -10/Subcaves | Core integrity fell below 20% 968 | -10/Subcaves | Destroyed by TM-JNM(R) with Subdweller Machine Gun Last Messages --------------- 00917_ 0L-RBP(R) emerges from the Twisted Machinery. 00917_ L8-12X(R) emerges from the Twisted Machinery. 00920_ 43-EV8(R) emerges from the Twisted Machinery. XZ-XB3(R) emerges from concealment. 00942_ 0L-RBP(R) suffers critical hit (Burn). 00942_ 0L-RBP(R) destroyed. 00944_ Scrap Shield destroyed. 00952_ Med. Laser destroyed. 00954_ ZL-6G8(R) suffers critical hit (Burn). 00955_ ZK-8JS(R) affixes Scrap Shield Fragment to Scrap Shield. 00956_ Acquired 1 matter. 00958_ Slammed into TM-JNM(R). 00958_ Lgt. Treads destroyed. 00960_ Ion Engine destroyed. 00962_ AV-EOP(R) affixes Scrap Shield Fragment to Scrap Shield. 00963_ 94-BMP(R): "UHTACK!" 00964_ Critical hit (Destroy). 00964_ Lgt. Treads destroyed. 00965_ L8-12X(R) destroyed. 00967_ Particle Gun destroyed. Map ----- +----------------------------------------------------+ | ?????????????????????????????????????????????????? | | ?????????????????????????????????????????????????? | | ?????????????????????????????????????????????????? | | ?????????????????????????????????????????????????? | | ?????????????????????????????????????????????????? | | ?????????????????????????????????????????????????? | | ?????????????????????????????????????????????????? | | ?????????????????????????????????????????????????? | | ?????????????????????????????????????????????????? | | ?????????????????????????????????????????????????? | | ?????????????????????????????????????????????????? | | ?????????????????????????????????????????????????? | | ?????????????????????????????????????????????????? | | ?????????????????????????????????????????????????? | | ?????????????????????????????????????????????????? | | ?????????????????????????????????????????????????? | | ????????????????????????#????????????????????????? | | ????????????????????????"????????????????????????? | | ??????????????????????##&????????????????????????? | | ?????????????????????## ????????????????????????? | | ???????????????#####??" #??????###???????????????? | | ??????????????## ## ##?##### ######??????????? | | ??????????????# " <### ####???????? | | ????????????# &%## #???????? | | ???????????????# ####R%= #???????? | | ???????????????##??? ###R@& #???????? | | ??????????????????# R R #???????? | | ??????????###?????# R #???????? | | ??????????"" #????## #???????? | | ???????????" ##???## ##???????? | | ????????#"""" ##???## ##### ##????????? | | ?? ###? ? """ ##???###????##"" ###?????????? | | ???" """ """"" ####?###????#"" #???????????? | | ????" """ """ ### ##???##" #???????????? | | ?????"" """ " ###### #???????????? | | ?????""" """ ## ## #???????????? | | #????" "" """%## #???????????? | | ?????"""" ""## #???????????? | | ?????#""" ### ## #### #???????????? | | ?????#""""%& """ #?## ###???##???????????? | | #???##"""! % """ #??# #?????????????????? | | #### "=%""" "####??## #?????????????????? | | ## !% ""#####??????# #?????????????????? | | ==#" "#?????????? ????????????????? | | # ## ##### #?????????? #???????????????? | | ?# ## ##???# #????????? ???????????????? | | ## [##??# #???????? ??????????????? | | # ]! [#??# #???????? ??????????????? | | ## #####??? #???????? ?????????????? | | ?# ##??????? #???????? ??????????????? | +----------------------------------------------------+ Best States ------------- Heat Dissipation 25 Energy Generation 10 Energy Capacity 250 Matter Stores 300 Matter Capacity 300 Sight Range 16 Terrain Scan Density 10 Armor Coverage 800 Evasion (%) 40 Recoil Reduction 2 Offensive Hacking 10 Item Schematics ----------------- None Robot Schematics ------------------ M-13 Machinist | -10/Materials | Hacked Fabricated ------------ Nothing Alien Tech Used ----------------- None Achievements -------------- None Challenges ------------ None Game ------ Seed ShieldSigixSuperbattery Manual? 0 Play Time 00:11:49 Cumulative 343.2 hours Start 2023.09.21 @ 09:55:46 End 2023.09.21 @ 10:05:54 Sessions 1 Manual Loads 0 Difficulty Rogue Special Mode None Game No. 217 Rogue 214 Adventurer 3 Explorer 0 Win Type - Total 7 Types 6/0/1/0/0/0/0/0/0 Lore% 68 Gallery% 75 Achievement% 65 Wizard Run 0 Options --------- ASCII 0 Keyboard 0 Movement Numpad Keybinds 0 Fullscreen 1 Font 18/SmallcapsGlow Map View 76x50 Tactical HUD 1 Map Filters NONE Filters NONE Steam 1 RUN: 6f421a94-1f1a-4c0e-9787-f765af35852c